[Event "Late-Titled-Tuesday-Blitz-April-16-2024"]
[Site "Chess.com"]
[Date "2024.04.16"]
[Round "8"]
[White "MathiasWomacka"]
[Black "Yushko_Olga"]
[Result "0-1"]
[WhiteElo "2497"]
[BlackElo "2323"]
[TimeControl "180+1"]
[EndTime "15:26:47 PDT"]
[Termination "Yushko_Olga won on time"]

1. e4 {[%clk 0:03:00.9]} 1... Nf6 {[%clk 0:02:58.7]} 2. e5 {[%clk 0:03:00.1]}
2... Nd5 {[%clk 0:02:58.6]} 3. d4 {[%clk 0:03:00.7]} 3... d6 {[%clk 0:02:56.9]}
4. Nf3 {[%clk 0:03:00.9]} 4... Bg4 {[%clk 0:02:42.1]} 5. Be2 {[%clk 0:02:59.9]}
5... c6 {[%clk 0:02:38.4]} 6. c4 {[%clk 0:02:56]} 6... Nb6 {[%clk 0:02:31.3]} 7.
Nbd2 {[%clk 0:02:56.4]} 7... dxe5 {[%clk 0:02:24]} 8. Nxe5 {[%clk 0:02:57.3]}
8... Bxe2 {[%clk 0:02:21.9]} 9. Qxe2 {[%clk 0:02:58.2]} 9... N8d7 {[%clk
0:02:18.7]} 10. Nd3 {[%clk 0:02:50.2]} 10... e6 {[%clk 0:02:14.7]} 11. b3 {[%clk
0:02:45.3]} 11... Be7 {[%clk 0:02:04.3]} 12. O-O {[%clk 0:02:42]} 12... O-O
{[%clk 0:02:03.6]} 13. Nf3 {[%clk 0:02:40]} 13... Qc7 {[%clk 0:01:59.4]} 14. Bf4
{[%clk 0:02:38.1]} 14... Qd8 {[%clk 0:01:48.3]} 15. Rfe1 {[%clk 0:02:32.3]}
15... a5 {[%clk 0:01:38]} 16. a4 {[%clk 0:02:22.6]} 16... Bb4 {[%clk 0:01:36.6]}
17. Nxb4 {[%clk 0:02:19.7]} 17... axb4 {[%clk 0:01:36.3]} 18. Bd6 {[%clk
0:02:18.3]} 18... Re8 {[%clk 0:01:35.6]} 19. Bxb4 {[%clk 0:02:16]} 19... Nf6
{[%clk 0:01:33.3]} 20. Rad1 {[%clk 0:02:11.7]} 20... Qd7 {[%clk 0:01:31.2]} 21.
Ne5 {[%clk 0:02:09.4]} 21... Qc8 {[%clk 0:01:24.1]} 22. Qf3 {[%clk 0:01:59.9]}
22... Nbd7 {[%clk 0:01:20.8]} 23. Bc3 {[%clk 0:01:50.3]} 23... h6 {[%clk
0:01:19]} 24. h3 {[%clk 0:01:47.6]} 24... Nf8 {[%clk 0:01:15.9]} 25. Re3 {[%clk
0:01:33.7]} 25... Qc7 {[%clk 0:01:13.9]} 26. Rde1 {[%clk 0:01:30.6]} 26... Rad8
{[%clk 0:01:12.1]} 27. Qg3 {[%clk 0:01:25.4]} 27... c5 {[%clk 0:01:01.6]} 28.
dxc5 {[%clk 0:01:15.3]} 28... Qxc5 {[%clk 0:01:00.5]} 29. Nd3 {[%clk 0:00:55.8]}
29... Qf5 {[%clk 0:00:41.1]} 30. Rf3 {[%clk 0:00:52.5]} 30... Nh5 {[%clk
0:00:40.6]} 31. Rxf5 {[%clk 0:00:42]} 31... Nxg3 {[%clk 0:00:40.1]} 32. Rf3
{[%clk 0:00:42.7]} 32... Nf5 {[%clk 0:00:38]} 33. Ne5 {[%clk 0:00:37.3]} 33...
Nd7 {[%clk 0:00:34.2]} 34. Rd3 {[%clk 0:00:33.5]} 34... Nxe5 {[%clk 0:00:32.5]}
35. Rxd8 {[%clk 0:00:34]} 35... Nf3+ {[%clk 0:00:32.2]} 36. gxf3 {[%clk
0:00:33.4]} 36... Rxd8 {[%clk 0:00:32.6]} 37. Be5 {[%clk 0:00:22.6]} 37... Rd3
{[%clk 0:00:31.1]} 38. Rb1 {[%clk 0:00:22.4]} 38... Rxf3 {[%clk 0:00:29.7]} 39.
a5 {[%clk 0:00:21.7]} 39... Rxh3 {[%clk 0:00:28.2]} 40. b4 {[%clk 0:00:21.2]}
40... Rd3 {[%clk 0:00:22.1]} 41. b5 {[%clk 0:00:21]} 41... Nh4 {[%clk
0:00:21.9]} 42. a6 {[%clk 0:00:20.2]} 42... bxa6 {[%clk 0:00:20.2]} 43. b6
{[%clk 0:00:20.4]} 43... Nf3+ {[%clk 0:00:18.5]} 44. Kf1 {[%clk 0:00:20.1]}
44... Nxe5 {[%clk 0:00:19.2]} 45. b7 {[%clk 0:00:18.7]} 45... Nc6 {[%clk
0:00:18.1]} 46. Rb6 {[%clk 0:00:17.2]} 46... Nb8 {[%clk 0:00:18.1]} 47. c5
{[%clk 0:00:17.2]} 47... Rc3 {[%clk 0:00:11.1]} 48. Rd6 {[%clk 0:00:16.8]} 48...
Kh7 {[%clk 0:00:05.5]} 49. Rd8 {[%clk 0:00:16]} 49... Nc6 {[%clk 0:00:05.8]} 50.
Rc8 {[%clk 0:00:16.3]} 50... Rc1+ {[%clk 0:00:04.8]} 51. Kg2 {[%clk 0:00:15.5]}
51... Rxc5 {[%clk 0:00:03.9]} 52. Rxc6 {[%clk 0:00:15.3]} 52... Rb5 {[%clk
0:00:04.4]} 53. Rc7 {[%clk 0:00:14.1]} 53... a5 {[%clk 0:00:04.9]} 54. Rxf7
{[%clk 0:00:11.4]} 54... a4 {[%clk 0:00:05.7]} 55. Re7 {[%clk 0:00:10.2]} 55...
a3 {[%clk 0:00:06.1]} 56. Rxe6 {[%clk 0:00:09.7]} 56... Rxb7 {[%clk 0:00:06.4]}
57. Ra6 {[%clk 0:00:10.3]} 57... Rb3 {[%clk 0:00:06.8]} 58. f3 {[%clk
0:00:09.7]} 58... h5 {[%clk 0:00:07.2]} 59. Kg3 {[%clk 0:00:10.1]} 59... g6
{[%clk 0:00:07.7]} 60. Kf4 {[%clk 0:00:09.3]} 60... Kh6 {[%clk 0:00:08.2]} 61.
Ra8 {[%clk 0:00:07.3]} 61... h4 {[%clk 0:00:08.1]} 62. Kg4 {[%clk 0:00:07.2]}
62... g5 {[%clk 0:00:07.9]} 63. Ra6+ {[%clk 0:00:06.3]} 63... Kg7 {[%clk
0:00:08.5]} 64. Kxg5 {[%clk 0:00:06.3]} 64... h3 {[%clk 0:00:08.9]} 65. Ra7+
{[%clk 0:00:04.2]} 65... Kf8 {[%clk 0:00:09.2]} 66. Kf6 {[%clk 0:00:02.9]} 66...
Rxf3+ {[%clk 0:00:09.4]} 67. Kg6 {[%clk 0:00:02.4]} 67... h2 {[%clk 0:00:09.6]}
68. Ra8+ {[%clk 0:00:01.9]} 68... Ke7 {[%clk 0:00:10.1]} 69. Rh8 {[%clk
0:00:02.8]} 69... a2 {[%clk 0:00:09.8]} 70. Rxh2 {[%clk 0:00:03.4]} 70... a1=Q
{[%clk 0:00:09.9]} 71. Re2+ {[%clk 0:00:04.1]} 71... Kd6 {[%clk 0:00:10.4]} 72.
Rd2+ {[%clk 0:00:03.4]} 72... Kc5 {[%clk 0:00:10.9]} 73. Kg5 {[%clk 0:00:04.2]}
73... Kc4 {[%clk 0:00:11.1]} 74. Kg4 {[%clk 0:00:04.1]} 74... Qf6 {[%clk
0:00:10.9]} 75. Re2 {[%clk 0:00:03.6]} 75... Kd3 {[%clk 0:00:11.4]} 0-1

[Event "Late-Titled-Tuesday-Blitz-April-16-2024"]
[Site "Chess.com"]
[Date "2024.04.16"]
[Round "8"]
[White "Mackster23"]
[Black "Nimrod_Veinberg"]
[Result "0-1"]
[WhiteElo "2581"]
[BlackElo "2743"]
[TimeControl "180+1"]
[EndTime "15:27:00 PDT"]
[Termination "Nimrod_Veinberg won by checkmate"]

1. e4 {[%clk 0:03:00.9]} 1... c5 {[%clk 0:02:57.2]} 2. Nf3 {[%clk 0:03:00.1]}
2... e6 {[%clk 0:02:57.5]} 3. d4 {[%clk 0:03:00.4]} 3... cxd4 {[%clk 0:02:58.4]}
4. Nxd4 {[%clk 0:03:01.1]} 4... a6 {[%clk 0:02:59.1]} 5. Bd3 {[%clk 0:03:01]}
5... Bc5 {[%clk 0:02:57.4]} 6. Nb3 {[%clk 0:03:00.4]} 6... Ba7 {[%clk 0:02:58]}
7. Qe2 {[%clk 0:02:59.6]} 7... Ne7 {[%clk 0:02:51.8]} 8. Be3 {[%clk 0:02:59]}
8... O-O {[%clk 0:02:51.2]} 9. Bxa7 {[%clk 0:02:56.8]} 9... Rxa7 {[%clk
0:02:51.3]} 10. Qe3 {[%clk 0:02:56.9]} 10... Nbc6 {[%clk 0:02:52]} 11. N1d2
{[%clk 0:02:52.9]} 11... d5 {[%clk 0:02:47.6]} 12. O-O-O {[%clk 0:02:48.7]}
12... d4 {[%clk 0:02:42.1]} 13. Qg3 {[%clk 0:02:41.8]} 13... e5 {[%clk
0:02:41.5]} 14. f4 {[%clk 0:02:38.4]} 14... Ng6 {[%clk 0:02:29.3]} 15. f5 {[%clk
0:02:23.5]} 15... Nf4 {[%clk 0:02:28.3]} 16. Nf3 {[%clk 0:02:23.2]} 16... Nxd3+
{[%clk 0:02:13.5]} 17. Rxd3 {[%clk 0:02:19.5]} 17... f6 {[%clk 0:02:13.9]} 18.
c3 {[%clk 0:02:13.5]} 18... b5 {[%clk 0:01:58.7]} 19. Kb1 {[%clk 0:02:09.5]}
19... Bb7 {[%clk 0:01:54.3]} 20. Nc5 {[%clk 0:02:06.3]} 20... Qe7 {[%clk
0:01:53.8]} 21. Ne6 {[%clk 0:01:51.9]} 21... Rc8 {[%clk 0:01:52.3]} 22. cxd4
{[%clk 0:01:17.5]} 22... Nxd4 {[%clk 0:01:26.5]} 23. Nfxd4 {[%clk 0:00:23.6]}
23... Bxe4 {[%clk 0:01:24.7]} 24. Re1 {[%clk 0:00:17.2]} 24... Bxd3+ {[%clk
0:01:14.7]} 25. Qxd3 {[%clk 0:00:18.1]} 25... exd4 {[%clk 0:01:15.3]} 26. Qxd4
{[%clk 0:00:18.1]} 26... Kh8 {[%clk 0:01:11.6]} 27. Rd1 {[%clk 0:00:15.7]} 27...
Raa8 {[%clk 0:00:59.1]} 28. g4 {[%clk 0:00:15]} 28... Qa7 {[%clk 0:00:51.5]} 29.
Qf4 {[%clk 0:00:11.4]} 29... Qb8 {[%clk 0:00:42.8]} 30. Qf2 {[%clk 0:00:10.9]}
30... Qe5 {[%clk 0:00:39.6]} 31. Re1 {[%clk 0:00:06.9]} 31... Qd5 {[%clk
0:00:32.9]} 32. h4 {[%clk 0:00:05.2]} 32... Qd3+ {[%clk 0:00:30]} 33. Ka1 {[%clk
0:00:05.3]} 33... Rc2 {[%clk 0:00:30.7]} 34. Qg1 {[%clk 0:00:02.9]} 34... Rac8
{[%clk 0:00:27.6]} 35. Rb1 {[%clk 0:00:02.5]} 35... Qd2 {[%clk 0:00:24.1]} 36.
g5 {[%clk 0:00:02.4]} 36... Rxb2 {[%clk 0:00:23.2]} 37. Rxb2 {[%clk 0:00:01.9]}
37... Rc1+ {[%clk 0:00:23.1]} 38. Qxc1 {[%clk 0:00:01.5]} 38... Qxc1+ {[%clk
0:00:23.4]} 39. Rb1 {[%clk 0:00:02.4]} 39... Qc3+ {[%clk 0:00:24.1]} 40. Rb2
{[%clk 0:00:03.1]} 40... a5 {[%clk 0:00:21.6]} 41. gxf6 {[%clk 0:00:02.7]} 41...
gxf6 {[%clk 0:00:21.2]} 42. Kb1 {[%clk 0:00:03.2]} 42... Qe1+ {[%clk 0:00:20.4]}
43. Kc2 {[%clk 0:00:03.9]} 43... Qe4+ {[%clk 0:00:21]} 44. Kc1 {[%clk
0:00:04.1]} 44... Qxf5 {[%clk 0:00:20.2]} 45. Re2 {[%clk 0:00:04.1]} 45... b4
{[%clk 0:00:16.7]} 46. Kd2 {[%clk 0:00:02.5]} 46... Qd5+ {[%clk 0:00:16.3]} 47.
Ke1 {[%clk 0:00:02.3]} 47... a4 {[%clk 0:00:15.9]} 48. Nf4 {[%clk 0:00:02.1]}
48... Qh1+ {[%clk 0:00:16]} 49. Kd2 {[%clk 0:00:02.7]} 49... b3 {[%clk
0:00:12.3]} 50. axb3 {[%clk 0:00:02.7]} 50... axb3 {[%clk 0:00:13.2]} 51. Nd3
{[%clk 0:00:03.1]} 51... Qd5 {[%clk 0:00:10.2]} 52. Kc3 {[%clk 0:00:02.7]} 52...
Qh5 {[%clk 0:00:05.6]} 53. Re4 {[%clk 0:00:02.4]} 53... Qf5 {[%clk 0:00:05.6]}
54. Rb4 {[%clk 0:00:02.1]} 54... b2 {[%clk 0:00:05.3]} 55. Rxb2 {[%clk
0:00:02.2]} 55... Qc8+ {[%clk 0:00:04.5]} 56. Kd2 {[%clk 0:00:02.3]} 56... Qh3
{[%clk 0:00:05.4]} 57. Rb4 {[%clk 0:00:02.4]} 57... Qh2+ {[%clk 0:00:05.3]} 58.
Ke3 {[%clk 0:00:02.7]} 58... Kg7 {[%clk 0:00:05.8]} 59. Rg4+ {[%clk 0:00:03]}
59... Kf7 {[%clk 0:00:05.8]} 60. Rf4 {[%clk 0:00:03.3]} 60... Qh3+ {[%clk
0:00:06.1]} 61. Rf3 {[%clk 0:00:03.7]} 61... Qc8 {[%clk 0:00:06.9]} 62. Rf4
{[%clk 0:00:04.1]} 62... Qb8 {[%clk 0:00:06.7]} 63. Re4 {[%clk 0:00:04.2]} 63...
Qa7+ {[%clk 0:00:07.1]} 64. Kf3 {[%clk 0:00:04.5]} 64... h5 {[%clk 0:00:07.5]}
65. Re3 {[%clk 0:00:04.6]} 65... Qb7+ {[%clk 0:00:07.7]} 66. Kg3 {[%clk
0:00:04.8]} 66... Qc7+ {[%clk 0:00:07]} 67. Nf4 {[%clk 0:00:03.9]} 67... Qd7
{[%clk 0:00:07]} 68. Nxh5 {[%clk 0:00:02.4]} 68... Qd2 {[%clk 0:00:05.8]} 69.
Rf3 {[%clk 0:00:01.4]} 69... Qe1+ {[%clk 0:00:06.1]} 70. Kg2 {[%clk 0:00:01.6]}
70... Qe4 {[%clk 0:00:04.7]} 71. Ng3 {[%clk 0:00:02.5]} 71... Qxh4 {[%clk
0:00:04.3]} 72. Rf5 {[%clk 0:00:02.7]} 72... Qg4 {[%clk 0:00:04.5]} 73. Rf3
{[%clk 0:00:03.2]} 73... Qg5 {[%clk 0:00:03.6]} 74. Rf5 {[%clk 0:00:03.5]} 74...
Qg4 {[%clk 0:00:03.7]} 75. Rf2 {[%clk 0:00:04]} 75... Kg6 {[%clk 0:00:04.3]} 76.
Rf3 {[%clk 0:00:04.3]} 76... Qd7 {[%clk 0:00:03.8]} 77. Rf4 {[%clk 0:00:04.4]}
77... Qd5+ {[%clk 0:00:03.8]} 78. Rf3 {[%clk 0:00:04.6]} 78... Kg5 {[%clk
0:00:03.8]} 79. Kf2 {[%clk 0:00:04.9]} 79... Kg4 {[%clk 0:00:04.1]} 80. Re3
{[%clk 0:00:03.6]} 80... Qd4 {[%clk 0:00:04.6]} 81. Ne2 {[%clk 0:00:03.5]} 81...
Qc5 {[%clk 0:00:03.7]} 82. Ng1 {[%clk 0:00:02.9]} 82... f5 {[%clk 0:00:04]} 83.
Nh3 {[%clk 0:00:02.3]} 83... f4 {[%clk 0:00:03.8]} 84. Nxf4 {[%clk 0:00:02.7]}
84... Kxf4 {[%clk 0:00:04.7]} 85. Kg2 {[%clk 0:00:02.3]} 85... Qxe3 {[%clk
0:00:05.4]} 86. Kh2 {[%clk 0:00:03]} 86... Qf3 {[%clk 0:00:05.5]} 87. Kg1 {[%clk
0:00:03.2]} 87... Qe2 {[%clk 0:00:06.4]} 88. Kh1 {[%clk 0:00:03.7]} 88... Kg3
{[%clk 0:00:07.3]} 89. Kg1 {[%clk 0:00:03.4]} 89... Qg2# {[%clk 0:00:08.2]} 0-1

[Event "Late-Titled-Tuesday-Blitz-April-16-2024"]
[Site "Chess.com"]
[Date "2024.04.16"]
[Round "9"]
[White "carlsenCamacho"]
[Black "giovannibrandao7"]
[Result "1-0"]
[WhiteElo "2295"]
[BlackElo "2229"]
[TimeControl "180+1"]
[EndTime "15:39:00 PDT"]
[Termination "carlsenCamacho won by resignation"]

1. e4 {[%clk 0:02:55.7]} 1... c5 {[%clk 0:02:59.3]} 2. Nf3 {[%clk 0:02:54.9]}
2... d6 {[%clk 0:02:59.7]} 3. d4 {[%clk 0:02:54.3]} 3... cxd4 {[%clk 0:03:00.6]}
4. Nxd4 {[%clk 0:02:54.6]} 4... Nf6 {[%clk 0:03:01.3]} 5. Nc3 {[%clk 0:02:55.1]}
5... a6 {[%clk 0:03:01.7]} 6. f3 {[%clk 0:02:55.1]} 6... e6 {[%clk 0:03:00.8]}
7. Be3 {[%clk 0:02:53.7]} 7... Be7 {[%clk 0:03:01.1]} 8. Qd2 {[%clk 0:02:54.3]}
8... O-O {[%clk 0:03:01.5]} 9. g4 {[%clk 0:02:54.7]} 9... b5 {[%clk 0:03:00.7]}
10. O-O-O {[%clk 0:02:54]} 10... Bb7 {[%clk 0:03:00.3]} 11. h4 {[%clk
0:02:53.7]} 11... Nfd7 {[%clk 0:03:00.4]} 12. g5 {[%clk 0:02:53.3]} 12... Ne5
{[%clk 0:03:00.8]} 13. Kb1 {[%clk 0:02:52.5]} 13... Nbc6 {[%clk 0:03:00.9]} 14.
Nxc6 {[%clk 0:02:41.1]} 14... Bxc6 {[%clk 0:03:00.7]} 15. h5 {[%clk 0:02:41.7]}
15... Nxf3 {[%clk 0:02:58.3]} 16. Qf2 {[%clk 0:02:36.6]} 16... Nxg5 {[%clk
0:02:58.2]} 17. h6 {[%clk 0:02:33.1]} 17... g6 {[%clk 0:02:56.6]} 18. e5 {[%clk
0:02:06.1]} 18... Bxh1 {[%clk 0:02:50.5]} 19. exd6 {[%clk 0:02:01.4]} 19... Bf6
{[%clk 0:02:49.8]} 20. Bb6 {[%clk 0:02:01.2]} 20... Qd7 {[%clk 0:02:44.5]} 21.
Qxf6 {[%clk 0:02:00.1]} 1-0

[Event "Late-Titled-Tuesday-Blitz-April-16-2024"]
[Site "Chess.com"]
[Date "2024.04.16"]
[Round "9"]
[White "Bryanl106"]
[Black "Ykow"]
[Result "0-1"]
[WhiteElo "2700"]
[BlackElo "2575"]
[TimeControl "180+1"]
[EndTime "15:40:13 PDT"]
[Termination "Ykow won by resignation"]

1. Nc3 {[%clk 0:02:55.7]} 1... d5 {[%clk 0:02:59.7]} 2. e4 {[%clk 0:02:52.6]}
2... d4 {[%clk 0:02:59.7]} 3. Nce2 {[%clk 0:02:52.8]} 3... c5 {[%clk 0:03:00.6]}
4. Ng3 {[%clk 0:02:53.3]} 4... Nc6 {[%clk 0:02:58.8]} 5. Bc4 {[%clk 0:02:53]}
5... Nf6 {[%clk 0:02:49.6]} 6. a3 {[%clk 0:02:49.2]} 6... h5 {[%clk 0:02:48.2]}
7. d3 {[%clk 0:02:46.5]} 7... h4 {[%clk 0:02:47.2]} 8. N3e2 {[%clk 0:02:45]}
8... h3 {[%clk 0:02:46.2]} 9. g3 {[%clk 0:02:43]} 9... Ne5 {[%clk 0:02:44]} 10.
Bb5+ {[%clk 0:02:42.8]} 10... Nfd7 {[%clk 0:02:41.8]} 11. f4 {[%clk 0:02:42]}
11... Qa5+ {[%clk 0:02:41.5]} 12. b4 {[%clk 0:02:33]} 12... Qxb5 {[%clk
0:02:40.3]} 13. fxe5 {[%clk 0:02:32.6]} 13... Nxe5 {[%clk 0:02:38.5]} 14. Bf4
{[%clk 0:02:30.7]} 14... Ng6 {[%clk 0:02:35.5]} 15. Bd2 {[%clk 0:02:25.8]} 15...
e5 {[%clk 0:02:34.3]} 16. Nf3 {[%clk 0:02:25.1]} 16... Bg4 {[%clk 0:02:34]} 17.
O-O {[%clk 0:02:25]} 17... c4 {[%clk 0:02:33.5]} 18. a4 {[%clk 0:02:23.4]} 18...
Qc6 {[%clk 0:02:32.7]} 19. b5 {[%clk 0:02:23.3]} 19... Qc7 {[%clk 0:02:32.6]}
20. Rb1 {[%clk 0:02:18.1]} 20... c3 {[%clk 0:02:31.6]} 21. Bc1 {[%clk
0:02:16.5]} 21... Be7 {[%clk 0:02:31.5]} 22. Qe1 {[%clk 0:02:16.2]} 22... O-O
{[%clk 0:02:28.8]} 23. Kh1 {[%clk 0:02:12.6]} 23... f5 {[%clk 0:02:26.5]} 24.
Neg1 {[%clk 0:02:11.8]} 24... f4 {[%clk 0:02:15]} 25. gxf4 {[%clk 0:02:10.3]}
25... exf4 {[%clk 0:02:09]} 26. Nxd4 {[%clk 0:02:09.1]} 26... Bh4 {[%clk
0:02:09.1]} 27. Rf2 {[%clk 0:02:00]} 27... Qc5 {[%clk 0:02:08.3]} 28. Be3 {[%clk
0:01:46.3]} 28... fxe3 {[%clk 0:02:02.6]} 29. Rxf8+ {[%clk 0:01:46]} 29... Rxf8
{[%clk 0:02:03.5]} 30. Qxe3 {[%clk 0:01:46.6]} 30... Bf2 {[%clk 0:02:04]} 0-1

[Event "Late-Titled-Tuesday-Blitz-April-16-2024"]
[Site "Chess.com"]
[Date "2024.04.16"]
[Round "9"]
[White "only_strong_moves"]
[Black "ozates"]
[Result "0-1"]
[WhiteElo "2659"]
[BlackElo "2550"]
[TimeControl "180+1"]
[EndTime "15:40:20 PDT"]
[Termination "ozates won by resignation"]

1. d4 {[%clk 0:03:00.9]} 1... d6 {[%clk 0:02:59.9]} 2. Nc3 {[%clk 0:02:59.5]}
2... Nf6 {[%clk 0:02:56.4]} 3. e4 {[%clk 0:02:59.7]} 3... e5 {[%clk 0:02:57.1]}
4. Nf3 {[%clk 0:02:58.5]} 4... Nbd7 {[%clk 0:02:57]} 5. Bc4 {[%clk 0:02:59.1]}
5... Be7 {[%clk 0:02:57.3]} 6. O-O {[%clk 0:02:59.5]} 6... O-O {[%clk
0:02:57.9]} 7. a4 {[%clk 0:02:58.5]} 7... c6 {[%clk 0:02:56.3]} 8. Re1 {[%clk
0:02:59]} 8... Qc7 {[%clk 0:02:56.3]} 9. Bg5 {[%clk 0:02:58.1]} 9... b6 {[%clk
0:02:56.6]} 10. Qd2 {[%clk 0:02:53.6]} 10... a6 {[%clk 0:02:55.8]} 11. Nh4
{[%clk 0:02:48.9]} 11... Re8 {[%clk 0:02:51.8]} 12. Bb3 {[%clk 0:02:31.6]} 12...
exd4 {[%clk 0:02:44.4]} 13. Qxd4 {[%clk 0:02:30.8]} 13... Nc5 {[%clk 0:02:40.3]}
14. Nf5 {[%clk 0:02:18.1]} 14... Bxf5 {[%clk 0:02:38.3]} 15. exf5 {[%clk
0:02:19]} 15... Nxb3 {[%clk 0:02:37.5]} 16. cxb3 {[%clk 0:02:19.9]} 16... d5
{[%clk 0:02:32.1]} 17. Qd3 {[%clk 0:02:14.1]} 17... Ng4 {[%clk 0:02:15.5]} 18.
Qh3 {[%clk 0:01:54.7]} 18... Nxf2 {[%clk 0:02:15]} 19. Qe3 {[%clk 0:01:22.1]}
19... Ng4 {[%clk 0:02:03]} 20. Qh3 {[%clk 0:01:21.8]} 20... Bc5+ {[%clk
0:02:01.2]} 0-1

[Event "Late-Titled-Tuesday-Blitz-April-16-2024"]
[Site "Chess.com"]
[Date "2024.04.16"]
[Round "9"]
[White "Oleksandr_Bortnyk"]
[Black "TigrVShlyape"]
[Result "1-0"]
[WhiteElo "3062"]
[BlackElo "2936"]
[TimeControl "180+1"]
[EndTime "15:40:29 PDT"]
[Termination "Oleksandr_Bortnyk won by resignation"]

1. e4 {[%clk 0:03:00.9]} 1... c5 {[%clk 0:02:54]} 2. c3 {[%clk 0:02:58.7]} 2...
d5 {[%clk 0:02:50.4]} 3. exd5 {[%clk 0:02:59.6]} 3... Qxd5 {[%clk 0:02:50.5]} 4.
d4 {[%clk 0:02:59.6]} 4... Nf6 {[%clk 0:02:50.8]} 5. Be3 {[%clk 0:02:59.8]} 5...
cxd4 {[%clk 0:02:48.9]} 6. cxd4 {[%clk 0:03:00.7]} 6... e6 {[%clk 0:02:48.6]} 7.
Nc3 {[%clk 0:03:00.5]} 7... Qd6 {[%clk 0:02:46.1]} 8. Nf3 {[%clk 0:03:00.3]}
8... Nc6 {[%clk 0:02:45.7]} 9. a3 {[%clk 0:03:00.8]} 9... Be7 {[%clk 0:02:45.1]}
10. Bd3 {[%clk 0:02:56.7]} 10... O-O {[%clk 0:02:43.8]} 11. O-O {[%clk
0:02:57.1]} 11... Rd8 {[%clk 0:02:39.9]} 12. Qe2 {[%clk 0:02:57.1]} 12... Bd7
{[%clk 0:02:32.2]} 13. Rad1 {[%clk 0:02:56.3]} 13... Be8 {[%clk 0:02:31.2]} 14.
Bb1 {[%clk 0:02:55.3]} 14... a6 {[%clk 0:02:22.1]} 15. Rfe1 {[%clk 0:02:55.5]}
15... Qc7 {[%clk 0:02:08.6]} 16. Bg5 {[%clk 0:02:54.4]} 16... h6 {[%clk
0:02:02.5]} 17. Bh4 {[%clk 0:02:45.4]} 17... Nh5 {[%clk 0:01:58.1]} 18. d5
{[%clk 0:02:33.6]} 18... Nf4 {[%clk 0:01:49]} 19. Qc2 {[%clk 0:02:28.5]} 19...
Bxh4 {[%clk 0:01:38.5]} 20. Qh7+ {[%clk 0:02:27.1]} 20... Kf8 {[%clk 0:01:38.1]}
21. Nxh4 {[%clk 0:02:05.3]} 21... Ne7 {[%clk 0:01:34.2]} 22. Qh8+ {[%clk
0:01:52.7]} 22... Ng8 {[%clk 0:01:32.2]} 23. Bh7 {[%clk 0:01:53.6]} 1-0

[Event "Late-Titled-Tuesday-Blitz-April-16-2024"]
[Site "Chess.com"]
[Date "2024.04.16"]
[Round "9"]
[White "Orest_Vovk"]
[Black "balachess2006"]
[Result "0-1"]
[WhiteElo "2555"]
[BlackElo "2694"]
[TimeControl "180+1"]
[EndTime "15:41:36 PDT"]
[Termination "balachess2006 won on time"]

1. g4 {[%clk 0:02:55.8]} 1... d5 {[%clk 0:02:58.3]} 2. h3 {[%clk 0:02:55.3]}
2... e5 {[%clk 0:02:55.6]} 3. Bg2 {[%clk 0:02:55.8]} 3... c6 {[%clk 0:02:55.7]}
4. d4 {[%clk 0:02:56.3]} 4... Nd7 {[%clk 0:02:54.4]} 5. c4 {[%clk 0:02:56.6]}
5... dxc4 {[%clk 0:02:51.8]} 6. dxe5 {[%clk 0:02:56]} 6... Nxe5 {[%clk
0:02:52.7]} 7. Qxd8+ {[%clk 0:02:55.3]} 7... Kxd8 {[%clk 0:02:53.6]} 8. Nf3
{[%clk 0:02:51]} 8... Nxf3+ {[%clk 0:02:51.8]} 9. Bxf3 {[%clk 0:02:51.9]} 9...
Nf6 {[%clk 0:02:52.3]} 10. O-O {[%clk 0:02:51.7]} 10... Be6 {[%clk 0:02:51.9]}
11. Rd1+ {[%clk 0:02:50.9]} 11... Ke8 {[%clk 0:02:52.1]} 12. Nc3 {[%clk
0:02:41.5]} 12... Be7 {[%clk 0:02:49.1]} 13. e4 {[%clk 0:02:21.3]} 13... Nd7
{[%clk 0:02:47.8]} 14. Bg2 {[%clk 0:02:06.2]} 14... g5 {[%clk 0:02:47.1]} 15.
Ne2 {[%clk 0:01:47.5]} 15... Ne5 {[%clk 0:02:44]} 16. Nd4 {[%clk 0:01:44.5]}
16... Rd8 {[%clk 0:02:44]} 17. Be3 {[%clk 0:01:41.1]} 17... a6 {[%clk
0:02:43.1]} 18. Nxe6 {[%clk 0:01:38.5]} 18... fxe6 {[%clk 0:02:44]} 19. Rxd8+
{[%clk 0:01:16.6]} 19... Kxd8 {[%clk 0:02:38.9]} 20. Rd1+ {[%clk 0:00:37.9]}
20... Kc7 {[%clk 0:02:34.7]} 21. f4 {[%clk 0:00:35.2]} 21... gxf4 {[%clk
0:02:33.6]} 22. Bxf4 {[%clk 0:00:35.3]} 22... Bd6 {[%clk 0:02:34.1]} 23. Kh1
{[%clk 0:00:15.7]} 23... Rf8 {[%clk 0:02:31.4]} 24. Bg3 {[%clk 0:00:15.2]} 24...
Nd3 {[%clk 0:02:29.2]} 25. e5 {[%clk 0:00:06.6]} 25... Nxe5 {[%clk 0:02:26.2]}
26. Be4 {[%clk 0:00:05.6]} 26... h6 {[%clk 0:02:24.6]} 27. h4 {[%clk 0:00:04.5]}
27... Rg8 {[%clk 0:02:19.8]} 28. Rf1 {[%clk 0:00:01]} 28... Rxg4 {[%clk
0:02:17.7]} 0-1

[Event "Late-Titled-Tuesday-Blitz-April-16-2024"]
[Site "Chess.com"]
[Date "2024.04.16"]
[Round "9"]
[White "Revan_2002"]
[Black "BardArtem"]
[Result "1-0"]
[WhiteElo "2752"]
[BlackElo "2820"]
[TimeControl "180+1"]
[EndTime "15:42:15 PDT"]
[Termination "Revan_2002 won by resignation"]

1. d4 {[%clk 0:03:00.9]} 1... d5 {[%clk 0:02:59.1]} 2. c4 {[%clk 0:02:56.3]}
2... e6 {[%clk 0:02:51.3]} 3. Nc3 {[%clk 0:02:51.4]} 3... h6 {[%clk 0:02:50.8]}
4. cxd5 {[%clk 0:02:46]} 4... exd5 {[%clk 0:02:50.7]} 5. Nf3 {[%clk 0:02:44.9]}
5... Nf6 {[%clk 0:02:50]} 6. Bf4 {[%clk 0:02:42.8]} 6... Bd6 {[%clk 0:02:49.3]}
7. Bg3 {[%clk 0:02:40.9]} 7... O-O {[%clk 0:02:48.9]} 8. e3 {[%clk 0:02:40.4]}
8... Re8 {[%clk 0:02:47]} 9. Be2 {[%clk 0:02:39.6]} 9... c6 {[%clk 0:02:46.3]}
10. O-O {[%clk 0:02:39]} 10... Bxg3 {[%clk 0:02:44.7]} 11. hxg3 {[%clk 0:02:38]}
11... Bf5 {[%clk 0:02:38.9]} 12. Rc1 {[%clk 0:02:28.3]} 12... a5 {[%clk
0:02:35.6]} 13. a3 {[%clk 0:02:25.8]} 13... Nbd7 {[%clk 0:02:35.3]} 14. Bd3
{[%clk 0:02:09.4]} 14... Bxd3 {[%clk 0:02:33.3]} 15. Qxd3 {[%clk 0:02:09.1]}
15... Ne4 {[%clk 0:02:34]} 16. Qc2 {[%clk 0:02:04.3]} 16... Nxc3 {[%clk
0:02:26.8]} 17. Qxc3 {[%clk 0:02:05.2]} 17... Qb6 {[%clk 0:02:25.2]} 18. Nd2
{[%clk 0:01:59]} 18... a4 {[%clk 0:02:19.8]} 19. Rb1 {[%clk 0:01:53.5]} 19...
Qa5 {[%clk 0:02:14.5]} 20. Qd3 {[%clk 0:01:43.3]} 20... b5 {[%clk 0:02:02.1]}
21. Rfc1 {[%clk 0:01:41.8]} 21... Rec8 {[%clk 0:02:01.3]} 22. Nf3 {[%clk
0:01:40.2]} 22... Nb6 {[%clk 0:01:59.7]} 23. e4 {[%clk 0:01:30.6]} 23... dxe4
{[%clk 0:01:54.6]} 24. Qxe4 {[%clk 0:01:31.5]} 24... Nc4 {[%clk 0:01:53.8]} 25.
g4 {[%clk 0:01:26.1]} 25... Qb6 {[%clk 0:01:41.3]} 26. g5 {[%clk 0:01:19.3]}
26... Re8 {[%clk 0:01:41.1]} 27. Qh4 {[%clk 0:01:18.3]} 27... Re6 {[%clk
0:01:40.7]} 28. Re1 {[%clk 0:01:14.5]} 28... Rae8 {[%clk 0:01:29.5]} 29. gxh6
{[%clk 0:01:13.2]} 29... Rxe1+ {[%clk 0:01:12.4]} 30. Rxe1 {[%clk 0:01:14.1]}
30... Rxe1+ {[%clk 0:01:13]} 31. Nxe1 {[%clk 0:01:12.4]} 31... gxh6 {[%clk
0:01:13.6]} 32. Nf3 {[%clk 0:01:06.1]} 32... Qd8 {[%clk 0:00:49.5]} 33. Qxd8+
{[%clk 0:01:04.9]} 1-0